Service area,Service sub division,TVBC Service,Expense type,Detailed expense type,TVBC account code,Date Paid,Transaction Reference,Nett Value,Supplier Name
Central Services to the Public,Management & Support Services,IT,Employees,Indirect Employee Expenses,Recruitment Consultants,23/04/2015,104742,-5573,Sanderson Recruitment Plc
Environmental & Regulatory,Regulatory Services,Housing and Environmental Health ,Supplies & Services,Grants and subscriptions,Capital Grants,21/04/2015,152860,-6260.64,Pm Design
Cultural & Related,Open Spaces,Community and Leisure ,Premises related Expenditure,Grounds Maintenance Costs,Non Contract Tree Works,30/04/2015,151898,-672.92,Gristwood & Toms Ltd
"Highways, Roads & Transport",Parking Services,Plan Pol & Transport,Supplies & Services,"Printing, Stationery & General Office Expenses",External Printing,16/04/2015,144100,-465,Paperwork (Uk) Ltd
Planning & Development,Economic Development,Estates and Economic Development ,Supplies & Services,Grants & Subscriptions,Grants,08/04/2015,151694,500,The Daisy Cake Company Ltd
Cultural & Related,Open Spaces,Environmental,Supplies & Services,Miscellaneous Expenses,Health And Safety,30/04/2015,153207,229.72,Occupational Health First
Environmental & Regulatory,Waste management,Environmental,Supplies & Services,Miscellaneous Expenses,Health And Safety,30/04/2015,153207,135.14,Occupational Health First
Central Services to the Public,Management & Support Services,Environmental,Supplies & Services,Miscellaneous Expenses,Health And Safety,30/04/2015,153207,135.14,Occupational Health First
Planning & Development,Economic Development,Estates and Economic Development ,Supplies & Services,Grants & Subscriptions,Grants,22/04/2015,152865,500,Personal data - Data Protection Act 1998
Planning & Development,Economic Development,Estates and Economic Development ,Supplies & Services,Grants & Subscriptions,Grants,22/04/2015,152867,500,Personal data - Data Protection Act 1998
Planning & Development,Economic Development,Estates and Economic Development ,Supplies & Services,Grants & Subscriptions,Grants,22/04/2015,152868,500,Personal data - Data Protection Act 1998
Central Services,Corporate & Democratic Core,Corporate & Democratic,Supplies & Services,Services,Legal Fees,22/04/2015,152866,500,The Information Commissioner
Cultural & Related,Culture & Heritage,Estates and Economic Development ,Supplies & Services,Miscellaneous Expenses,Waste Collection,16/04/2015,152381,115.28,Sita Uk Ltd
Central Services to the Public,Management & Support Services,Estates and Economic Development ,Supplies & Services,Miscellaneous Expenses,Waste Collection,16/04/2015,152381,276.09,Sita Uk Ltd
Cultural & Related,Recreation & Sport,Community and Leisure ,Supplies & Services,Miscellaneous Expenses,Waste Collection,16/04/2015,152381,38.08,Sita Uk Ltd
Central Services to the Public,Management & Support Services,Environmental,Transport Related Expenditure,Direct Transport Costs,Repair Materials,23/04/2015,152706,434.53,Dennis Eagle Ltd
Central Services to the Public,Management & Support Services,Finance,Supplies & Services,Communications & Computing,Computer Hardware,16/04/2015,152252,350.4,Bechtle Direct Ltd
Central Services to the Public,Management & Support Services,IT,Supplies & Services,Communications & Computing,Computer Hardware,16/04/2015,152252,87.6,Bechtle Direct Ltd
Central Services to the Public,Management & Support Services,Plan Pol & Transport,Premises related Expenditure,Repairs Alterations & Maintenance of Buildings,General Repairs,09/04/2015,147589,443.19,Openreach Bt
Central Services to the Public,Management & Support Services,Environmental,Supplies & Services,Communications & Computing,Computer Software,16/04/2015,152313,446.25,Tecnodiagnostics
Environmental & Regulatory,Regulatory Services,Housing and Environmental Health ,Supplies & Services,Services,Project Consultancy - Policy,23/04/2015,152073,449.76,Eurofins Environmental Testing Uk Ltd
Central Services to the Public,Management & Support Services,Chief Executive's,Employees,Indirect Employee Expenses,Temporary Staff,16/04/2015,152117,450.84,Personnel Selection
Central Services to the Public,Elections,Legal & Democratic,Supplies & Services,"Printing, Stationery & General Office Expenses",Photocopying Costs,30/04/2015,153172,458.63,Ricoh Uk Ltd
Cultural & Related,Tourism,Estates and Economic Development ,Premises related Expenditure,Repairs Alterations & Maintenance of Buildings,Planned Maintenance - Non Est,30/04/2015,153401,470,Alarms & Electrical (Devizes) Ltd
Central Services to the Public,Local Tax Collection,Revenues,Supplies & Services,Miscellaneous Expenses,Data Access Requests,30/04/2015,153188,15.3,Brighton & Hove City Council
Central Services to the Public,Local Tax Collection,Revenues,Supplies & Services,Miscellaneous Expenses,Data Access Requests,30/04/2015,153188,398.75,Brighton & Hove City Council
Housing Services,Housing Benefits ,Revenues,Supplies & Services,Miscellaneous Expenses,Data Access Requests,30/04/2015,153188,42.8,Brighton & Hove City Council
Central Services to the Public,Local Tax Collection,Revenues,Supplies & Services,Miscellaneous Expenses,Data Access Requests,30/04/2015,153188,22.9,Brighton & Hove City Council
Central Services to the Public,Management & Support Services,Estates and Economic Development ,Premises related Expenditure,Repairs Alterations & Maintenance of Buildings,Planned Maintenance - Non Est,30/04/2015,153386,480,Alarms & Electrical (Devizes) Ltd
Environmental & Regulatory,Street Cleansing (not chargeable to Highways),Environmental,Supplies & Services,"Equipment, Furniture & Materials",Purchase Equip + Materials,09/04/2015,151670,481,Sweeperhire
Environmental & Regulatory,Waste management,Environmental,Transport Related Expenditure,Direct Transport Costs,Repair Materials,16/04/2015,152282,482.06,Terberg Matec Uk Limited
Cultural & Related,Culture & Heritage,Community and Leisure ,Supplies & Services,Catering,Caf�/ bar consumables,16/04/2015,151645,12.17,Carlsberg Uk Ltd
Cultural & Related,Culture & Heritage,Community and Leisure ,Supplies & Services,Catering,Non-Contract Catering,16/04/2015,151645,470.78,Carlsberg Uk Ltd
Housing Services,Homelessness,Housing and Environmental Health ,Supplies & Services,Miscellaneous Expenses,Bed & Breakfast,16/04/2015,151877,585,Cabin B & B
Central Services to the Public,Management & Support Services,Finance,Supplies & Services,Services,Training Courses,23/04/2015,152897,495,Deloitte Llp
Cultural & Related,Open Spaces,Environmental,Third Party Payments,Other Establishments,Private Contractors,23/04/2015,152948,594.12,Ivan Gibson Agricultural Contractor
Central Services to the Public,Management & Support Services,Chief Executive's,Supplies & Services,Services,Training Courses,16/04/2015,151914,499,Cipd Enterprises Ltd
Cultural & Related,Culture & Heritage,Community and Leisure ,Supplies & Services,Miscellaneous Expenses,Booking Of Acts,16/04/2015,151855,600,Blue Orange Theatre Limited
Central Services to the Public,Elections,Legal & Democratic,Supplies & Services,Services,Legal Fees,30/04/2015,153342,500,4-5 Gray'S Inn Square
Central Services to the Public,Management & Support Services,IT,Supplies & Services,Communications & Computing,Computer Software,09/04/2015,151633,500,Winchester City Council
Environmental & Regulatory,Waste management,Environmental,Transport Related Expenditure,Direct Transport Costs,Repair Materials,23/04/2015,152781,393.02,Dennis Eagle Ltd
Environmental & Regulatory,Waste management,Environmental,Transport Related Expenditure,Direct Transport Costs,Repair Materials,23/04/2015,152781,107.14,Dennis Eagle Ltd
External Trading Accounts,Industrial Estates,Estates and Economic Development ,Supplies & Services,Communications & Computing,Land Line Telephone Charges,30/04/2015,153353,29.7,Virgin Media Payments Ltd
Cultural & Related,Culture & Heritage,Estates and Economic Development ,Supplies & Services,Communications & Computing,Land Line Telephone Charges,30/04/2015,153353,39.61,Virgin Media Payments Ltd
Cultural & Related,Culture & Heritage,Estates and Economic Development ,Supplies & Services,Communications & Computing,Land Line Telephone Charges,30/04/2015,153353,39.04,Virgin Media Payments Ltd
Central Services to the Public,Management & Support Services,IT,Supplies & Services,Communications & Computing,Communication Links,30/04/2015,153353,26,Virgin Media Payments Ltd
Central Services to the Public,Management & Support Services,IT,Supplies & Services,Communications & Computing,Communication Links,30/04/2015,153353,67,Virgin Media Payments Ltd
Cultural & Related,Recreation & Sport,Community and Leisure ,Supplies & Services,Communications & Computing,Land Line Telephone Charges,30/04/2015,153353,26,Virgin Media Payments Ltd
Cultural & Related,Recreation & Sport,Community and Leisure ,Supplies & Services,Communications & Computing,Land Line Telephone Charges,30/04/2015,153353,13.74,Virgin Media Payments Ltd
Cultural & Related,Recreation & Sport,Community and Leisure ,Supplies & Services,Communications & Computing,Land Line Telephone Charges,30/04/2015,153353,13,Virgin Media Payments Ltd
Cultural & Related,Culture & Heritage,Community and Leisure ,Supplies & Services,Communications & Computing,Communication Links,30/04/2015,153353,52.06,Virgin Media Payments Ltd
"Highways, Roads & Transport",Parking Services,Plan Pol & Transport,Supplies & Services,Communications & Computing,Alarm Lines,30/04/2015,153353,37,Virgin Media Payments Ltd
Central Services to the Public,Management & Support Services,Environmental,Supplies & Services,Communications & Computing,Land Line Telephone Charges,30/04/2015,153353,67.11,Virgin Media Payments Ltd
Central Services to the Public,Emergency Planning,Corporate & Democratic,Supplies & Services,Communications & Computing,Land Line Telephone Charges,30/04/2015,153353,91,Virgin Media Payments Ltd
Environmental & Regulatory,Waste management,Environmental,Employees,Indirect Employee Expenses,Agency Staff - Waged Posts,09/04/2015,151664,512.8,Simple Recruitment Services Ltd
Central Services to the Public,Elections,Legal & Democratic,Supplies & Services,"Equipment, Furniture & Materials",Purchase Equip + Materials,30/04/2015,151342,514.5,Shaw & Sons Ltd
Central Services to the Public,Management & Support Services,Estates and Economic Development ,Third Party Payments,Other Establishments,Private Contractors,16/04/2015,152317,520,A J Wilsons
Central Services to the Public,Local Tax Collection,Revenues,Supplies & Services,"Printing, Stationery & General Office Expenses",Postage Costs,30/04/2015,153374,18.87,Royal Mail
Central Services to the Public,Local Tax Collection,Revenues,Supplies & Services,"Printing, Stationery & General Office Expenses",Postage Costs,30/04/2015,153374,173.24,Royal Mail
Housing Services,Housing Benefits ,Revenues,Supplies & Services,"Printing, Stationery & General Office Expenses",Postage Costs,30/04/2015,153374,165.5,Royal Mail
Central Services to the Public,Local Tax Collection,Revenues,Supplies & Services,"Printing, Stationery & General Office Expenses",Postage Costs,30/04/2015,153374,165.49,Royal Mail
Environmental & Regulatory,Regulatory Services,Estates and Economic Development ,Supplies & Services,"Equipment, Furniture & Materials",Purchase Equip + Materials,30/04/2015,153377,529.52,Cjs Portsmouth Ltd
Central Services to the Public,Emergency Planning,Corporate & Democratic,Supplies & Services,Grants & Subscriptions,Grants,23/04/2015,153002,644.37,Personal data - Data Protection Act 1998
Central Services to the Public,Elections,Legal & Democratic,Supplies & Services,"Printing, Stationery & General Office Expenses",External Printing,23/04/2015,152155,548.38,Financial Data Management Plc
Cultural & Related,Culture & Heritage,Community and Leisure ,Supplies & Services,Miscellaneous Expenses,Booking Of Acts,23/04/2015,152715,550,Blunderbus Theatre Company Ltd
Environmental & Regulatory,Regulatory Services,Housing and Environmental Health ,Supplies & Services,Grants and subscriptions,Capital Grants,09/04/2015,151701,660,Epw Construction
External Trading Accounts,Industrial Estates,Estates and Economic Development ,Premises related Expenditure,Repairs Alterations & Maintenance of Buildings,Planned Maintenance - Non Est,09/04/2015,151656,550,Fire Design Solutions Ltd
Cultural & Related,Open Spaces,Environmental,Third Party Payments,Other Establishments,Private Contractors,30/04/2015,153302,660.7,Ivan Gibson Agricultural Contractor
Central Services to the Public,Management & Support Services,Environmental,Supplies & Services,"Equipment, Furniture & Materials",Purchase Equip + Materials,30/04/2015,153203,31.57,Arco Ltd
Central Services to the Public,Management & Support Services,Environmental,Supplies & Services,"Clothes, Uniforms & Laundry",Clothing + Uniforms,30/04/2015,153203,520.58,Arco Ltd
Cultural & Related,Open Spaces,Community and Leisure ,Supplies & Services,"Equipment, Furniture & Materials",Purchase Equip + Materials,09/04/2015,151258,560,Evergreen Rabbit Control
Cultural & Related,Culture & Heritage,Community and Leisure ,Supplies & Services,Catering,Non-Contract Catering,30/04/2015,152714,564.38,Carlsberg Uk Ltd
Cultural & Related,Open Spaces,Environmental,Supplies & Services,"Equipment, Furniture & Materials",Purchase Equip + Materials,30/04/2015,153211,576.8,Nomix Enviro
Central Services to the Public,Management & Support Services,Finance,Supplies & Services,Services,Training Courses,23/04/2015,152448,580,Ernst & Young Llp
Central Services to the Public,Local Tax Collection,Revenues,Supplies & Services,Miscellaneous Expenses,All Pay Fees,23/04/2015,152159,668.18,Allpay Limited
Cultural & Related,Open Spaces,Environmental,Third Party Payments,Other Establishments,Private Contractors,16/04/2015,152454,697,Ivan Gibson Agricultural Contractor
Cultural & Related,Culture & Heritage,Community and Leisure ,Supplies & Services,Catering,Non-Contract Catering,09/04/2015,150705,581.52,Carlsberg Uk Ltd
Environmental & Regulatory,Waste management,Environmental,Supplies & Services,"Equipment, Furniture & Materials",Purchase Equip + Materials,30/04/2015,152963,587.5,Steele Signs
Central Services to the Public,Management & Support Services,Estates and Economic Development ,Premises related Expenditure,Repairs Alterations & Maintenance of Buildings,Planned Maintenance - Non Est,30/04/2015,153387,590,Alarms & Electrical (Devizes) Ltd
Cultural & Related,Culture & Heritage,Estates and Economic Development ,Premises related Expenditure,Repairs Alterations & Maintenance of Buildings,Planned Maintenance - Non Est,09/04/2015,151654,200,Aquacare
Cultural & Related,Culture & Heritage,Estates and Economic Development ,Premises related Expenditure,Repairs Alterations & Maintenance of Buildings,Planned Maintenance - Non Est,09/04/2015,151654,200,Aquacare
Central Services to the Public,Management & Support Services,Estates and Economic Development ,Premises related Expenditure,Repairs Alterations & Maintenance of Buildings,Planned Maintenance - Non Est,09/04/2015,151654,200,Aquacare
Central Services to the Public,Management & Support Services,Estates and Economic Development ,Premises related Expenditure,Repairs Alterations & Maintenance of Buildings,Planned Maintenance - Non Est,30/04/2015,153380,620,Alarms & Electrical (Devizes) Ltd
Environmental & Regulatory,Regulatory Services,Legal & Democratic,Supplies & Services,Grants & Subscriptions,Subscriptions,30/04/2015,153162,625,James Button & Co
Cultural & Related,Culture & Heritage,Community and Leisure ,Supplies & Services,Miscellaneous Expenses,Booking Of Acts,30/04/2015,148137,750,Midnight Mango Ltd
Environmental & Regulatory,Street Cleansing (not chargeable to Highways),Environmental,Supplies & Services,Communications & Computing,Computer Hardware,16/04/2015,152072,11.94,Supplies Team Ltd
Central Services to the Public,Management & Support Services,Environmental,Supplies & Services,"Equipment, Furniture & Materials",Purchase Equip + Materials,16/04/2015,152072,61.58,Supplies Team Ltd
Central Services to the Public,Management & Support Services,Environmental,Supplies & Services,"Printing, Stationery & General Office Expenses",Stationery,16/04/2015,152072,340.13,Supplies Team Ltd
Central Services to the Public,Management & Support Services,Environmental,Supplies & Services,"Printing, Stationery & General Office Expenses",Print Consumables,16/04/2015,152072,159.02,Supplies Team Ltd
Central Services to the Public,Management & Support Services,Environmental,Supplies & Services,Communications & Computing,Computer Hardware,16/04/2015,152072,55.32,Supplies Team Ltd
Cultural & Related,Open Spaces,Environmental,Supplies & Services,"Equipment, Furniture & Materials",Purchase Equip + Materials,30/04/2015,153507,635.62,Nomix Enviro
Environmental & Regulatory,Waste management,Environmental,Employees,Indirect Employee Expenses,Agency Staff - Waged Posts,09/04/2015,151663,636,Abacus Employment Services Ltd
Environmental & Regulatory,Regulatory Services,Housing and Environmental Health ,Supplies & Services,Grants and subscriptions,Capital Grants,30/04/2015,153486,768,Epw Construction
Central Services to the Public,Management & Support Services,Estates and Economic Development ,Third Party Payments,Other Establishments,Private Contractors,30/04/2015,153455,640,Purbeck Civil Engineering Limited
Cultural & Related,Culture & Heritage,Estates and Economic Development ,Premises related Expenditure,Water Services,Water And Sewerage Charges,23/04/2015,152952,787.04,Southern Water
Central Services to the Public,Management & Support Services,Estates and Economic Development ,Supplies & Services,"Equipment, Furniture & Materials",Purchase Materials (Job Cost),09/04/2015,151655,664.47,Wolseley Uk Limited
Planning & Development,Economic Development,Estates and Economic Development ,Supplies & Services,Services,Training Courses,16/04/2015,152124,800,Andover Physiotherapy
Central Services to the Public,Management & Support Services,IT,Supplies & Services,"Printing, Stationery & General Office Expenses",Stationery,23/04/2015,152156,668.01,Supplies Team Ltd
Central Services to the Public,Management & Support Services,Legal & Democratic,Supplies & Services,"Printing, Stationery & General Office Expenses",Photocopying Costs,30/04/2015,153171,453.63,Ricoh Uk Ltd
Central Services,Corporate & Democratic Core,Corporate & Democratic,Supplies & Services,"Printing, Stationery & General Office Expenses",Photocopying Costs,30/04/2015,153171,226.81,Ricoh Uk Ltd
Cultural & Related,Culture & Heritage,Community and Leisure ,Premises related Expenditure,Cleaning and domestic supplies,Contract Cleaning - Non Estates,16/04/2015,152126,686,Nuserve Ltd
Planning & Development,Community Development,Community and Leisure ,Supplies & Services,Grants & Subscriptions,Grants,29/04/2015,153357,825,Andover District Netball Association
Central Services to the Public,Management & Support Services,IT,Employees,Indirect Employee Expenses,Recruitment Consultants,23/04/2015,151902,696.63,Sanderson Recruitment Plc
Cultural & Related,Culture & Heritage,Community and Leisure ,Supplies & Services,Miscellaneous Expenses,Booking Of Acts,16/04/2015,151853,700,Avalon Management Group Ltd
Cultural & Related,Culture & Heritage,Community and Leisure ,Supplies & Services,Services,Tutors,22/04/2015,152711,840,Personal data - Data Protection Act 1998
Cultural & Related,Recreation & Sport,Community and Leisure ,Supplies & Services,"Equipment, Furniture & Materials",Purchase Equip + Materials,23/04/2015,152697,709,Broxap Limited (Stadia Sports )
Central Services to the Public,Emergency Planning,Corporate & Democratic,Supplies & Services,Grants & Subscriptions,Grants,30/04/2015,153514,855,Personal data - Data Protection Act 1998
Central Services to the Public,Management & Support Services,IT,Supplies & Services,Communications & Computing,Hardware Maintenance,23/04/2015,152893,740.62,Quadrant Security Group Ltd
Cultural & Related,Culture & Heritage,Community and Leisure ,Supplies & Services,Catering,Non-Contract Catering,30/04/2015,152956,743.69,Carlsberg Uk Ltd
Cultural & Related,Open Spaces,Environmental,Supplies & Services,Communications & Computing,Mobile Telephone Charges,16/04/2015,152305,151.07,Vodafone Limited
Environmental & Regulatory,Street Cleansing (not chargeable to Highways),Environmental,Supplies & Services,Communications & Computing,Mobile Telephone Charges,16/04/2015,152305,238.86,Vodafone Limited
Environmental & Regulatory,Waste management,Environmental,Supplies & Services,Communications & Computing,Mobile Telephone Charges,16/04/2015,152305,99.14,Vodafone Limited
Central Services to the Public,Management & Support Services,Environmental,Supplies & Services,Communications & Computing,Mobile Telephone Charges,16/04/2015,152305,27.04,Vodafone Limited
Central Services to the Public,Management & Support Services,Environmental,Supplies & Services,Communications & Computing,Mobile Telephone Charges,16/04/2015,152305,240.64,Vodafone Limited
Central Services to the Public,Management & Support Services,Estates and Economic Development ,Third Party Payments,Other Establishments,Private Contractors,09/04/2015,151684,932,Ashine Cleaning Services Ltd
External Trading Accounts,Industrial Estates,Estates and Economic Development ,Supplies & Services,"Printing, Stationery & General Office Expenses",Postage Costs,30/04/2015,153469,787,Royal Mail
Planning & Development,Economic Development,Estates and Economic Development ,Supplies & Services,Services,Training Courses,30/04/2015,153491,960.7,Wren Laboratories Ltd
Central Services to the Public,Management & Support Services,Chief Executive's,Supplies & Services,Grants & Subscriptions,Subscriptions,30/04/2015,153227,973.7,Hampshire County Council
External Trading Accounts,Industrial Estates,Estates and Economic Development ,Premises related Expenditure,Repairs Alterations & Maintenance of Buildings,Building Maint - Non Estates,30/04/2015,153495,974.74,Southern Electric Power Distributiion Plc
Planning & Development,Community Development,Community and Leisure ,Supplies & Services,Grants & Subscriptions,Grants,22/04/2015,152875,1000,Romsey Arts Festival
Planning & Development,Community Development,Community and Leisure ,Supplies & Services,Grants & Subscriptions,Grants,29/04/2015,153356,1000,Romsey Area Schools Orchestra
Central Services to the Public,Management & Support Services,IT,Supplies & Services,Services,Project Consultancy - Systems,23/04/2015,152746,835.26,Westcon Group European Operations Ltd
Environmental & Regulatory,Regulatory Services,Housing and Environmental Health ,Supplies & Services,Miscellaneous Expenses,Kennel fees,16/04/2015,152323,840,Anton Vets Ltd
Planning & Development,Community Development,Community and Leisure ,Supplies & Services,Grants & Subscriptions,Grants,29/04/2015,153359,1016.4,North Baddesley Village Hall
Central Services to the Public,Management & Support Services,Estates and Economic Development ,Supplies & Services,Communications & Computing,Telephone Tracking System,16/04/2015,152280,60,Ctrack Uk Limited
Environmental & Regulatory,Regulatory Services,Estates and Economic Development ,Supplies & Services,Communications & Computing,Telephone Tracking System,16/04/2015,152280,20,Ctrack Uk Limited
Cultural & Related,Open Spaces,Environmental,Supplies & Services,Communications & Computing,Telephone Tracking System,16/04/2015,152280,280,Ctrack Uk Limited
Environmental & Regulatory,Street Cleansing (not chargeable to Highways),Environmental,Supplies & Services,Communications & Computing,Telephone Tracking System,16/04/2015,152280,230,Ctrack Uk Limited
Environmental & Regulatory,Waste management,Environmental,Supplies & Services,Communications & Computing,Telephone Tracking System,16/04/2015,152280,210,Ctrack Uk Limited
Environmental & Regulatory,Waste management,Environmental,Supplies & Services,Communications & Computing,Telephone Tracking System,16/04/2015,152280,20,Ctrack Uk Limited
Central Services to the Public,Management & Support Services,Environmental,Supplies & Services,Communications & Computing,Telephone Tracking System,16/04/2015,152280,30,Ctrack Uk Limited
Environmental & Regulatory,Regulatory Services,Estates and Economic Development ,Premises related Expenditure,Water Services,Water And Sewerage Charges,23/04/2015,152974,1041.44,Southern Water
Central Services to the Public,Management & Support Services,IT,Supplies & Services,Communications & Computing,Land Line Telephone Charges,16/04/2015,152331,881.34,Virgin Media Payments Ltd
Cultural & Related,Culture & Heritage,Community and Leisure ,Supplies & Services,"Equipment, Furniture & Materials",Purchase Equip + Materials,09/04/2015,151661,890,Moore Secure South Ltd
Planning & Development,Development Control,Planning & Building,Supplies & Services,"Printing, Stationery & General Office Expenses",Written Media,16/04/2015,152324,1069,Hammicks Legal Information Services
Environmental & Regulatory,"Cemetery, Cremation and Mortuary Services",Community and Leisure ,Supplies & Services,Miscellaneous Expenses,National Assist Act Burials,08/04/2015,151759,1080,Dunnings Funeral Services
Central Services to the Public,Local Tax Collection,Revenues,Supplies & Services,Services,External Training Consultants,23/04/2015,152720,900,People Intelligence
Environmental & Regulatory,Waste management,Environmental,Supplies & Services,Services,Training Courses,16/04/2015,152458,900,Allied Driving Schools Ltd
Planning & Development,Development Control,Planning & Building,Supplies & Services,"Printing, Stationery & General Office Expenses",Photocopying Costs,30/04/2015,152731,900.61,Ricoh Uk Ltd
Planning & Development,Community Development,Community and Leisure ,Supplies & Services,Grants & Subscriptions,Grants,30/04/2015,153483,1086,King John'S House & Heritage Centre
Central Services to the Public,Management & Support Services,Estates and Economic Development ,Transport Related Expenditure,Direct Transport Costs,Repair Materials,30/04/2015,152900,10.7,M D Services
Environmental & Regulatory,Regulatory Services,Estates and Economic Development ,Transport Related Expenditure,Direct Transport Costs,Repair Materials,30/04/2015,152900,4.28,M D Services
Environmental & Regulatory,Regulatory Services,Housing and Environmental Health ,Transport Related Expenditure,Direct Transport Costs,Repair Materials,30/04/2015,152900,4.28,M D Services
Environmental & Regulatory,Regulatory Services,Housing and Environmental Health ,Transport Related Expenditure,Direct Transport Costs,Repair Materials,30/04/2015,152900,4.28,M D Services
Environmental & Regulatory,Community Development,Community and Leisure ,Transport Related Expenditure,Direct Transport Costs,Repair Materials,30/04/2015,152900,4.28,M D Services
"Highways, Roads & Transport",Parking Services,Plan Pol & Transport,Transport Related Expenditure,Direct Transport Costs,Repair Materials,30/04/2015,152900,4.28,M D Services
Cultural & Related,Open Spaces,Environmental,Transport Related Expenditure,Direct Transport Costs,Repair Materials,30/04/2015,152900,83.46,M D Services
Environmental & Regulatory,Street Cleansing (not chargeable to Highways),Environmental,Transport Related Expenditure,Direct Transport Costs,Repair Materials,30/04/2015,152900,49.22,M D Services
Environmental & Regulatory,Waste management,Environmental,Transport Related Expenditure,Direct Transport Costs,Repair Materials,30/04/2015,152900,36.38,M D Services
Environmental & Regulatory,Waste management,Environmental,Transport Related Expenditure,Direct Transport Costs,Repair Materials,30/04/2015,152900,6.42,M D Services
Central Services to the Public,Management & Support Services,Environmental,Transport Related Expenditure,Direct Transport Costs,Workshop Consumables,30/04/2015,152900,157.15,M D Services
Central Services to the Public,Management & Support Services,Environmental,Transport Related Expenditure,Direct Transport Costs,Repair Materials,30/04/2015,152900,463.85,M D Services
Central Services to the Public,Management & Support Services,Environmental,Transport Related Expenditure,Direct Transport Costs,Repair Materials,30/04/2015,152900,6.42,M D Services
Central Services to the Public,Management & Support Services,Environmental,Transport Related Expenditure,Direct Transport Costs,Repair Materials,30/04/2015,152900,79.32,M D Services
Cultural & Related,Recreation & Sport,Community and Leisure ,Premises related Expenditure,Repairs Alterations & Maintenance of Buildings,Building Maint - Non Estates,16/04/2015,152347,973,Temple Lifts Ltd
"Highways, Roads & Transport",Parking Services,Plan Pol & Transport,Supplies & Services,Services,Legal Fees,16/04/2015,152103,1177,Patrol
Central Services to the Public,Management & Support Services,Environmental,Supplies & Services,Miscellaneous Expenses,Vehicle insurance claims,30/04/2015,153219,370,Steele Signs
Cultural & Related,Open Spaces,Environmental,Transport Related Expenditure,Direct Transport Costs,Repair Materials,30/04/2015,153219,158,Steele Signs
Environmental & Regulatory,Street Cleansing (not chargeable to Highways),Environmental,Transport Related Expenditure,Direct Transport Costs,Repair Materials,30/04/2015,153219,140,Steele Signs
Central Services to the Public,Management & Support Services,Environmental,Transport Related Expenditure,Direct Transport Costs,Repair Materials,30/04/2015,153219,330,Steele Signs
Cultural & Related,Open Spaces,Community and Leisure ,Premises related Expenditure,Repairs Alterations & Maintenance of Buildings,Estates premises costs - AMP,23/04/2015,152698,500,Fernden Construction (Winchester) Ltd
Cultural & Related,Open Spaces,Community and Leisure ,Premises related Expenditure,Grounds Maintenance Costs,Gm - Additional Works,23/04/2015,152698,510,Fernden Construction (Winchester) Ltd
Planning & Development,Development Control,Planning & Building,Supplies & Services,"Printing, Stationery & General Office Expenses",Postage Costs,16/04/2015,152492,428.27,Royal Mail
Central Services,Corporate & Democratic Core,Corporate & Democratic,Supplies & Services,"Printing, Stationery & General Office Expenses",Postage Costs,16/04/2015,152492,346.8,Royal Mail
Planning & Development,Planning Policy,Plan Pol & Transport,Supplies & Services,"Printing, Stationery & General Office Expenses",Postage Costs,16/04/2015,152492,250.92,Royal Mail
Environmental & Regulatory,Regulatory Services,Housing and Environmental Health ,Supplies & Services,Grants and subscriptions,Capital Grants,09/04/2015,151700,1242.9,Dolphin Mobility
Environmental & Regulatory,Waste management,Environmental,Transport Related Expenditure,Direct Transport Costs,Repair Materials,16/04/2015,151869,1046.94,Terberg Matec Uk Limited
"Highways, Roads & Transport",Parking Services,Plan Pol & Transport,Supplies & Services,"Printing, Stationery & General Office Expenses",External Printing,23/04/2015,152953,1060,Liberty Printers Ltd
External Trading Accounts,Industrial Estates,Estates and Economic Development ,Premises related Expenditure,Repairs Alterations & Maintenance of Buildings,Planned Maintenance - Non Est,09/04/2015,151652,200,Aquacare
Cultural & Related,Tourism,Estates and Economic Development ,Premises related Expenditure,Repairs Alterations & Maintenance of Buildings,Planned Maintenance - Non Est,09/04/2015,151652,200,Aquacare
Central Services to the Public,Management & Support Services,Estates and Economic Development ,Premises related Expenditure,Repairs Alterations & Maintenance of Buildings,Planned Maintenance - Non Est,09/04/2015,151652,200,Aquacare
Environmental & Regulatory,Regulatory Services,Estates and Economic Development ,Premises related Expenditure,Repairs Alterations & Maintenance of Buildings,Planned Maintenance - Non Est,09/04/2015,151652,65,Aquacare
Cultural & Related,Recreation & Sport,Community and Leisure ,Premises related Expenditure,Repairs Alterations & Maintenance of Buildings,Planned Maintenance - Non Est,09/04/2015,151652,200,Aquacare
Cultural & Related,Recreation & Sport,Community and Leisure ,Premises related Expenditure,Repairs Alterations & Maintenance of Buildings,Planned Maintenance - Non Est,09/04/2015,151652,200,Aquacare
Central Services to the Public,Management & Support Services,IT,Supplies & Services,Communications & Computing,Software Maintenance,30/04/2015,152896,1084.53,Pnl Tools Ltd
"Highways, Roads & Transport",Public Transport,Plan Pol & Transport,Third Party Payments,Transport Operators in Respect of Concessionary Fares,Voluntary Orgs Reimbursement,16/04/2015,152328,1307,Andover Neighbourcare
"Highways, Roads & Transport",Parking Services,Plan Pol & Transport,Supplies & Services,"Printing, Stationery & General Office Expenses",External Printing,16/04/2015,152086,1095,Paperwork (Uk) Ltd
Cultural & Related,Culture & Heritage,Community and Leisure ,Supplies & Services,"Equipment, Furniture & Materials",Purchase Equip + Materials,30/04/2015,153166,1110,Moore Secure South Ltd
Cultural & Related,Open Spaces,Environmental,Supplies & Services,"Equipment, Furniture & Materials",Purchase Equip + Materials,30/04/2015,153516,1155.3,Nomix Enviro
Central Services to the Public,Management & Support Services,Finance,Supplies & Services,"Printing, Stationery & General Office Expenses",Postage Costs,23/04/2015,152748,1161.93,Whistl South West Ltd
Cultural & Related,Culture & Heritage,Community and Leisure ,Premises related Expenditure,Cleaning and domestic supplies,Cleaning Materials-Purchases,09/04/2015,151637,1163.78,Phs Group Plc
"Highways, Roads & Transport",Parking Services,Plan Pol & Transport,Supplies & Services,"Equipment, Furniture & Materials",Purchase Equip + Materials,30/04/2015,153498,1163.91,Cale Briparc Ltd
Environmental & Regulatory,Regulatory Services,Housing and Environmental Health ,Supplies & Services,Grants and subscriptions,Capital Grants,30/04/2015,153485,1448,Epw Construction
Central Services to the Public,Elections,Legal & Democratic,Supplies & Services,"Printing, Stationery & General Office Expenses",Postage Costs,30/04/2015,153499,37.44,Royal Mail
Planning & Development,Development Control,Planning & Building,Supplies & Services,"Printing, Stationery & General Office Expenses",Postage Costs,30/04/2015,153499,416.67,Royal Mail
Planning & Development,Planning Policy,Plan Pol & Transport,Supplies & Services,"Printing, Stationery & General Office Expenses",Postage Costs,30/04/2015,153499,67.32,Royal Mail
Environmental & Regulatory,Waste management,Environmental,Supplies & Services,"Printing, Stationery & General Office Expenses",Postage Costs,30/04/2015,153499,406.8,Royal Mail
Central Services,Corporate & Democratic Core,Corporate & Democratic,Supplies & Services,"Printing, Stationery & General Office Expenses",Postage Costs,30/04/2015,153499,303.75,Royal Mail
Central Services to the Public,Management & Support Services,Chief Executive's,Supplies & Services,Miscellaneous Expenses,Promotions / Special Events,16/04/2015,152476,1500,Romsey Cancer Support Centre
Planning & Development,Community Development,Community and Leisure ,Supplies & Services,Grants & Subscriptions,Grants,29/04/2015,153358,1500,Three Rivers Community Rail Partnership
Cultural & Related,Recreation & Sport,Community and Leisure ,Premises related Expenditure,Grounds Maintenance Costs,Gm - Additional Works,15/04/2015,151338,1250,Surfacing Standards Ltd
Central Services to the Public,Management & Support Services,Chief Executive's,Supplies & Services,Miscellaneous Expenses,Promotions / Special Events,16/04/2015,152477,1500,Romsey Town Council
Central Services to the Public,Management & Support Services,Chief Executive's,Supplies & Services,Miscellaneous Expenses,Promotions / Special Events,16/04/2015,152482,1500,Princess Royal Trust For Carers Hampshire
Central Services to the Public,Management & Support Services,Finance,Supplies & Services,"Printing, Stationery & General Office Expenses",Postage Costs,23/04/2015,152150,1250.16,Whistl South West Ltd
Housing Services,Homelessness,Housing and Environmental Health ,Supplies & Services,Services,Removal Fees,30/04/2015,152982,1265,Pickfords Move Management Ltd
Central Services to the Public,Management & Support Services,Finance,Supplies & Services,"Printing, Stationery & General Office Expenses",Postage Costs,23/04/2015,152750,1288.99,Whistl South West Ltd
Central Services to the Public,Management & Support Services,Chief Executive's,Supplies & Services,Miscellaneous Expenses,Promotions / Special Events,22/04/2015,152484,1600,Andover And District Mencap
Environmental & Regulatory,Waste management,Environmental,Employees,Indirect Employee Expenses,Agency Staff - Waged Posts,30/04/2015,153309,1336.88,Abacus Employment Services Ltd
Central Services,Corporate & Democratic Core,Corporate & Democratic,Supplies & Services,"Equipment, Furniture & Materials",Purchase Equip + Materials,16/04/2015,152250,1380,Shaw & Sons Ltd
Environmental & Regulatory,Waste management,Environmental,Employees,Indirect Employee Expenses,Agency Staff - Waged Posts,09/04/2015,151666,1401.56,Abacus Employment Services Ltd
Central Services to the Public,Management & Support Services,Chief Executive's,Supplies & Services,Miscellaneous Expenses,Promotions / Special Events,16/04/2015,152481,1685,St Frances School Association
Environmental & Regulatory,Waste management,Environmental,Employees,Indirect Employee Expenses,Agency Staff - Waged Posts,16/04/2015,152343,1428,365 Supply Ltd
Central Services,Corporate & Democratic Core,Corporate & Democratic,Supplies & Services,Communications & Computing,Computer Software,23/04/2015,152332,1451.84,Siteimprove Ltd
Planning & Development,Development Control,Planning & Building,Supplies & Services,Services,Project Consultancy - Policy,16/04/2015,152136,1497,Allen Planning Ltd
Central Services to the Public,Management & Support Services,Estates and Economic Development ,Supplies & Services,"Equipment, Furniture & Materials",Equipment Hire,16/04/2015,152345,1500,Dunbar And Boardman
Central Services to the Public,Management & Support Services,Chief Executive's,Supplies & Services,Miscellaneous Expenses,Promotions / Special Events,16/04/2015,152480,1800,Romsey Youth Council
Environmental & Regulatory,Street Cleansing (not chargeable to Highways),Environmental,Supplies & Services,"Equipment, Furniture & Materials",Purchase Equip + Materials,09/04/2015,151671,1509,Sweeperhire
Environmental & Regulatory,Regulatory Services,Housing and Environmental Health ,Supplies & Services,Grants and subscriptions,Capital Grants,23/04/2015,153006,1847.31,Prism Medical Uk
Environmental & Regulatory,Waste management,Environmental,Employees,Indirect Employee Expenses,Agency Staff - Waged Posts,09/04/2015,151667,1549.1,365 Supply Ltd
Central Services to the Public,Management & Support Services,IT,Supplies & Services,Services,Project Consultancy - Systems,30/04/2015,153157,1565.25,Westcon Group European Operations Ltd
Central Services to the Public,Management & Support Services,Chief Executive's,Supplies & Services,Miscellaneous Expenses,Promotions / Special Events,16/04/2015,152483,1903.5,Andover Food Bank
Central Services to the Public,Management & Support Services,IT,Supplies & Services,Communications & Computing,Software Maintenance,30/04/2015,153182,1586.64,Konica Minolta Business Soltns (Uk) Ltd
External Trading Accounts,Industrial Estates,Estates and Economic Development ,Premises related Expenditure,Repairs Alterations & Maintenance of Buildings,Planned Maintenance - Non Est,09/04/2015,151653,200,Aquacare
External Trading Accounts,Industrial Estates,Estates and Economic Development ,Premises related Expenditure,Repairs Alterations & Maintenance of Buildings,Planned Maintenance - Non Est,09/04/2015,151653,200,Aquacare
Cultural & Related,Culture & Heritage,Estates and Economic Development ,Premises related Expenditure,Repairs Alterations & Maintenance of Buildings,Planned Maintenance - Non Est,09/04/2015,151653,200,Aquacare
Environmental & Regulatory,Regulatory Services,Estates and Economic Development ,Premises related Expenditure,Repairs Alterations & Maintenance of Buildings,Planned Maintenance - Non Est,09/04/2015,151653,195,Aquacare
Cultural & Related,Recreation & Sport,Community and Leisure ,Premises related Expenditure,Repairs Alterations & Maintenance of Buildings,Planned Maintenance - Non Est,09/04/2015,151653,200,Aquacare
Cultural & Related,Recreation & Sport,Community and Leisure ,Premises related Expenditure,Repairs Alterations & Maintenance of Buildings,Planned Maintenance - Non Est,09/04/2015,151653,200,Aquacare
Cultural & Related,Recreation & Sport,Community and Leisure ,Premises related Expenditure,Repairs Alterations & Maintenance of Buildings,Planned Maintenance - Non Est,09/04/2015,151653,200,Aquacare
Cultural & Related,Culture & Heritage,Community and Leisure ,Premises related Expenditure,Repairs Alterations & Maintenance of Buildings,Planned Maintenance - Non Est,09/04/2015,151653,200,Aquacare
Environmental & Regulatory,Waste management,Environmental,Transport Related Expenditure,Direct Transport Costs,Repair Materials,16/04/2015,151875,1617.46,Terberg Matec Uk Limited
Planning & Development,Development Control,Planning & Building,Supplies & Services,"Printing, Stationery & General Office Expenses",Stationery,16/04/2015,152064,1091.7,Supplies Team Ltd
Planning & Development,Development Control,Planning & Building,Supplies & Services,"Printing, Stationery & General Office Expenses",Print Consumables,16/04/2015,152064,531.32,Supplies Team Ltd
Cultural & Related,Tourism,Estates and Economic Development ,Supplies & Services,Grants & Subscriptions,Subscriptions,30/04/2015,153159,1639,Tourism South East
Central Services to the Public,Management & Support Services,Chief Executive's,Supplies & Services,Miscellaneous Expenses,Promotions / Special Events,16/04/2015,152473,2000,Andover Young Carers
Planning & Development,Community Development,Community and Leisure ,Supplies & Services,Grants & Subscriptions,Grants,23/04/2015,152996,2000,Andover Vips
Central Services to the Public,Management & Support Services,Chief Executive's,Supplies & Services,Miscellaneous Expenses,Promotions / Special Events,16/04/2015,152474,2000,Romsey Youth Council
Central Services to the Public,Management & Support Services,Chief Executive's,Supplies & Services,Miscellaneous Expenses,Promotions / Special Events,16/04/2015,152475,2000,Chilbolton Parish Council
"Highways, Roads & Transport",Parking Services,Plan Pol & Transport,Supplies & Services,Services,Legal Fees,09/04/2015,151698,2000,Hmcs
Central Services to the Public,Management & Support Services,Estates and Economic Development ,Third Party Payments,Other Establishments,Contract Catering,23/04/2015,152894,1667.46,Edwards And Ward Ltd
Environmental & Regulatory,Regulatory Services,Housing and Environmental Health ,Third Party Payments,Other Establishments,Private Contractors,23/04/2015,151848,2023,Cedar Pest
Central Services to the Public,Management & Support Services,Estates and Economic Development ,Third Party Payments,Other Establishments,Private Contractors,09/04/2015,151802,1697.82,Andover Roofing Cladding & Maintenance Ltd
Central Services to the Public,Emergency Planning,Corporate & Democratic,Supplies & Services,Grants & Subscriptions,Grants,16/04/2015,152490,2040,Personal data - Data Protection Act 1998
Central Services to the Public,Management & Support Services,Estates and Economic Development ,Third Party Payments,Other Establishments,Private Contractors,30/04/2015,153453,1764,Mccarthy Bainbridge Ltd
Central Services to the Public,Management & Support Services,Estates and Economic Development ,Third Party Payments,Other Establishments,Contract Catering,23/04/2015,152895,1800.93,Edwards And Ward Ltd
"Highways, Roads & Transport",Parking Services,Plan Pol & Transport,Premises related Expenditure,Repairs Alterations & Maintenance of Buildings,Car Park General Repairs,16/04/2015,152078,1876.88,Sse Contracting Ltd
Environmental & Regulatory,Regulatory Services,Housing and Environmental Health ,Supplies & Services,Grants and subscriptions,Capital Grants,09/04/2015,151703,2260,Andover Glass Works Ltd
Central Services to the Public,Local Tax Collection,Revenues,Supplies & Services,Communications & Computing,Software Maintenance,30/04/2015,153189,188.43,Northgate Information Solutions Uk Ltd
Central Services to the Public,Local Tax Collection,Revenues,Supplies & Services,Communications & Computing,Software Maintenance,30/04/2015,153189,753.71,Northgate Information Solutions Uk Ltd
Housing Services,Housing Benefits ,Revenues,Supplies & Services,Communications & Computing,Software Maintenance,30/04/2015,153189,471.07,Northgate Information Solutions Uk Ltd
Central Services to the Public,Local Tax Collection,Revenues,Supplies & Services,Communications & Computing,Software Maintenance,30/04/2015,153189,471.07,Northgate Information Solutions Uk Ltd
Central Services to the Public,Emergency Planning,Corporate & Democratic,Supplies & Services,Grants & Subscriptions,Grants,30/04/2015,153508,2336.4,Personal data - Data Protection Act 1998
Environmental & Regulatory,Regulatory Services,Housing and Environmental Health ,Transport Related Expenditure,Contract Hire and Operating Leases,Officer lease cars,23/04/2015,152447,2374.6,Inchcape Fleet Solutions Ltd
Cultural & Related,Culture & Heritage,Community and Leisure ,Premises related Expenditure,Energy Costs,Electricity,16/04/2015,151909,1129.98,Sparsholt College Hampshire
Cultural & Related,Culture & Heritage,Community and Leisure ,Premises related Expenditure,Energy Costs,Gas,16/04/2015,151909,647.5,Sparsholt College Hampshire
Cultural & Related,Culture & Heritage,Community and Leisure ,Premises related Expenditure,Water Services,Water And Sewerage Charges,16/04/2015,151909,254.34,Sparsholt College Hampshire
Central Services to the Public,Management & Support Services,Environmental,Transport Related Expenditure,Direct Transport Costs,Diesel,23/04/2015,152738,1997.84,Wessex Petroleum Limited
Central Services to the Public,Management & Support Services,Legal & Democratic,Supplies & Services,"Printing, Stationery & General Office Expenses",Postage Costs,30/04/2015,152118,2000,Dx Network Services Limited
Environmental & Regulatory,Regulatory Services,Housing and Environmental Health ,Supplies & Services,Grants and subscriptions,Capital Grants,23/04/2015,153007,2401.3,S & J Building Services (Uk) Ltd
Cultural & Related,Open Spaces,Community and Leisure ,Premises related Expenditure,Grounds Maintenance Costs,Gm - Additional Works,30/04/2015,153156,2034,Fernden Construction (Winchester) Ltd
Environmental & Regulatory,Waste management,Environmental,Employees,Indirect Employee Expenses,Agency Staff - Waged Posts,16/04/2015,152453,2049.56,Abacus Employment Services Ltd
Environmental & Regulatory,Waste management,Environmental,Supplies & Services,"Equipment, Furniture & Materials",Purchase Equip + Materials,30/04/2015,153304,2060.8,Craemer Uk Ltd
Planning & Development,Community Development,Community and Leisure ,Supplies & Services,Grants & Subscriptions,Grants,22/04/2015,152877,2500,Andover Mind
Cultural & Related,Culture & Heritage,Estates and Economic Development ,Premises related Expenditure,Repairs Alterations & Maintenance of Buildings,Planned Maintenance - Non Est,23/04/2015,152372,280,Aquacare
Central Services to the Public,Management & Support Services,Estates and Economic Development ,Premises related Expenditure,Repairs Alterations & Maintenance of Buildings,Planned Maintenance - Non Est,23/04/2015,152372,280,Aquacare
Cultural & Related,Recreation & Sport,Community and Leisure ,Premises related Expenditure,Repairs Alterations & Maintenance of Buildings,Planned Maintenance - Non Est,23/04/2015,152372,280,Aquacare
Cultural & Related,Recreation & Sport,Community and Leisure ,Premises related Expenditure,Repairs Alterations & Maintenance of Buildings,Planned Maintenance - Non Est,23/04/2015,152372,280,Aquacare
Cultural & Related,Recreation & Sport,Community and Leisure ,Premises related Expenditure,Repairs Alterations & Maintenance of Buildings,Building Maint - Non Estates,23/04/2015,152372,250,Aquacare
Cultural & Related,Recreation & Sport,Community and Leisure ,Premises related Expenditure,Repairs Alterations & Maintenance of Buildings,Planned Maintenance - Non Est,23/04/2015,152372,280,Aquacare
Cultural & Related,Recreation & Sport,Community and Leisure ,Premises related Expenditure,Repairs Alterations & Maintenance of Buildings,Planned Maintenance - Non Est,23/04/2015,152372,440,Aquacare
Central Services to the Public,Elections,Legal & Democratic,Supplies & Services,"Equipment, Furniture & Materials",Purchase Equip + Materials,30/04/2015,153186,1508.63,Shaw & Sons Ltd
Environmental & Regulatory,Regulatory Services,Housing and Environmental Health ,Supplies & Services,Grants and subscriptions,Capital Grants,09/04/2015,151904,2586.69,Spc Bathrooms Ltd
Planning & Development,Community Development,Community and Leisure ,Supplies & Services,Grants & Subscriptions,Grants,23/04/2015,152992,2630,Alamein Community Association
Cultural & Related,Open Spaces,Environmental,Supplies & Services,Communications & Computing,Telephone Tracking System,16/04/2015,152304,2250,Ctrack Uk Limited
Environmental & Regulatory,Waste management,Environmental,Employees,Indirect Employee Expenses,Agency Staff - Waged Posts,30/04/2015,153306,2304.94,365 Supply Ltd
Central Services to the Public,Management & Support Services,Estates and Economic Development ,Third Party Payments,Other Establishments,Private Contractors,16/04/2015,152366,2316.29,Options Flooring Ltd
Planning & Development,Economic Development,Estates and Economic Development ,Supplies & Services,Grants & Subscriptions,Grants,09/04/2015,151918,2443.8,Heartflood Ltd
Environmental & Regulatory,Waste management,Environmental,Employees,Indirect Employee Expenses,Agency Staff - Waged Posts,16/04/2015,152451,2458.92,365 Supply Ltd
Planning & Development,Community Development,Community and Leisure ,Supplies & Services,Grants & Subscriptions,Grants,22/04/2015,152876,3000,Relate South West Hampshire & Isle Of Wight
Central Services to the Public,Management & Support Services,IT,Supplies & Services,Communications & Computing,Software Maintenance,23/04/2015,152777,2521.62,Vodafone Cable & Wireless Uk
Planning & Development,Economic Development,Estates and Economic Development ,Supplies & Services,"Equipment, Furniture & Materials",Purchase Equip + Materials,23/04/2015,152719,2524.6,Radio Structures Ltd
Central Services to the Public,Management & Support Services,Environmental,Transport Related Expenditure,Direct Transport Costs,External Garages,22/04/2015,152278,480,Rymer Commercials Ltd
Environmental & Regulatory,Waste management,Environmental,Transport Related Expenditure,Direct Transport Costs,Repair Materials,22/04/2015,152278,1903.34,Rymer Commercials Ltd
Environmental & Regulatory,Waste management,Environmental,Transport Related Expenditure,Direct Transport Costs,External Garages,22/04/2015,152278,255,Rymer Commercials Ltd
Central Services to the Public,Elections,Legal & Democratic,Supplies & Services,Communications & Computing,Computer Software,30/04/2015,152881,2640,Idox Software Ltd
Environmental & Regulatory,Regulatory Services,Estates and Economic Development ,Premises related Expenditure,Repairs Alterations & Maintenance of Buildings,Planned Maintenance - Non Est,09/04/2015,151685,2240,Wallgate Ltd
Cultural & Related,Open Spaces,Community and Leisure ,Premises related Expenditure,Repairs Alterations & Maintenance of Buildings,Planned Maintenance - Non Est,09/04/2015,151685,420,Wallgate Ltd
Central Services to the Public,Management & Support Services,Environmental,Transport Related Expenditure,Direct Transport Costs,Diesel,16/04/2015,152461,2668.1,Wessex Petroleum Limited
Cultural & Related,Culture & Heritage,Community and Leisure ,Supplies & Services,Miscellaneous Expenses,Booking Of Acts,16/04/2015,152333,2693.75,Personal data - Data Protection Act 1998
Central Services to the Public,Management & Support Services,Environmental,Transport Related Expenditure,Direct Transport Costs,Diesel,16/04/2015,152292,2733.63,Wessex Petroleum Limited
External Trading Accounts,Industrial Estates,Estates and Economic Development ,Premises related Expenditure,Repairs Alterations & Maintenance of Buildings,Building Maint - Non Estates,16/04/2015,152320,2750,The Genesis Design Studio Ltd
Central Services to the Public,Management & Support Services,Environmental,Transport Related Expenditure,Direct Transport Costs,Diesel,16/04/2015,151892,2778.9,Wessex Petroleum Limited
Cultural & Related,Open Spaces,Environmental,Supplies & Services,"Equipment, Furniture & Materials",Purchase Equip + Materials,30/04/2015,152306,2782,Rigby Taylor Ltd
Environmental & Regulatory,Waste management,Environmental,Employees,Indirect Employee Expenses,Agency Staff - Waged Posts,30/04/2015,153305,2867.59,365 Supply Ltd
Environmental & Regulatory,Waste management,Environmental,Supplies & Services,"Equipment, Furniture & Materials",Purchase Equip + Materials,16/04/2015,152247,2920,J & H M Dickson Ltd
Central Services to the Public,Management & Support Services,IT,Supplies & Services,Communications & Computing,Computer Hardware,09/04/2015,151657,2940,Vodafone Business Services
Planning & Development,Development Control,Planning & Building,Supplies & Services,Miscellaneous Expenses,Planning Appeal Costs,30/04/2015,153326,3008.35,Justin Gardner Consulting
Cultural & Related,Culture & Heritage,Community and Leisure ,Supplies & Services,Miscellaneous Expenses,Booking Of Acts,16/04/2015,152123,3048.66,Wim Wigt Productions Ltd
Cultural & Related,Open Spaces,Environmental,Supplies & Services,"Equipment, Furniture & Materials",Equipment Lease Rentals,09/04/2015,151417,3085,Unilink Finance Ltd
Central Services to the Public,Emergency Planning,Corporate & Democratic,Supplies & Services,Grants & Subscriptions,Grants,09/04/2015,151696,3753,Personal data - Data Protection Act 1998
Central Services to the Public,Management & Support Services,IT,Supplies & Services,Communications & Computing,Communication Links,09/04/2015,151626,3252,Virgin Media Payments Ltd
Planning & Development,Community Development,Community and Leisure ,Supplies & Services,Grants & Subscriptions,Grants,23/04/2015,152994,4000,Age Uk Andover & District
Environmental & Regulatory,Regulatory Services,Legal & Democratic,Supplies & Services,"Equipment, Furniture & Materials",Purchase Equip + Materials,30/04/2015,153163,2915.9,Newauto Ltd T/A Mogo (Uk)
Environmental & Regulatory,Regulatory Services,Legal & Democratic,Supplies & Services,"Equipment, Furniture & Materials",Purchase Equip + Materials,30/04/2015,153163,420,Newauto Ltd T/A Mogo (Uk)
Cultural & Related,Open Spaces,Environmental,Transport Related Expenditure,Direct Transport Costs,Tyres,16/04/2015,152307,193.87,Ats Euromaster Limited
Environmental & Regulatory,Street Cleansing (not chargeable to Highways),Environmental,Transport Related Expenditure,Direct Transport Costs,Tyres,16/04/2015,152307,213.97,Ats Euromaster Limited
Environmental & Regulatory,Waste management,Environmental,Transport Related Expenditure,Direct Transport Costs,Tyres,16/04/2015,152307,2767.73,Ats Euromaster Limited
Environmental & Regulatory,Waste management,Environmental,Transport Related Expenditure,Direct Transport Costs,Tyres,16/04/2015,152307,85,Ats Euromaster Limited
Environmental & Regulatory,Community Development,Community and Leisure ,Transport Related Expenditure,Direct Transport Costs,Tyres,16/04/2015,152307,132.25,Ats Euromaster Limited
Central Services to the Public,Management & Support Services,Estates and Economic Development ,Third Party Payments,Other Establishments,Private Contractors,30/04/2015,153465,3450,Purbeck Civil Engineering Limited
"Highways, Roads & Transport",Highways and roads - maintenance,Plan Pol & Transport,Premises related Expenditure,Repairs Alterations & Maintenance of Buildings,Highways Repairs,30/04/2015,153497,3529.5,Midland Signs (Leicester) Ltd
Environmental & Regulatory,Regulatory Services,Housing and Environmental Health ,Supplies & Services,Grants and subscriptions,Capital Grants,16/04/2015,152486,4250,Liftability Ltd
Central Services to the Public,Management & Support Services,Environmental,Transport Related Expenditure,Direct Transport Costs,Diesel,30/04/2015,153221,3295.95,Wessex Petroleum Limited
Central Services to the Public,Management & Support Services,Environmental,Transport Related Expenditure,Direct Transport Costs,Red Derv,30/04/2015,153221,429.39,Wessex Petroleum Limited
Environmental & Regulatory,Regulatory Services,Housing and Environmental Health ,Supplies & Services,Grants and subscriptions,Capital Grants,09/04/2015,151702,4684,Epw Construction
Cultural & Related,Recreation & Sport,Community and Leisure ,Third Party Payments,Other Establishments,ALC Management Contract-TVL,30/04/2015,151856,3916.7,Valley Leisure Ltd
Cultural & Related,Open Spaces,Environmental,Transport Related Expenditure,Direct Transport Costs,Environmental transport costs AMP,16/04/2015,152276,3975.02,New Forest Farm Machinery Ltd
Planning & Development,Community Development,Community and Leisure ,Supplies & Services,Grants & Subscriptions,Grants,22/04/2015,152878,5000,Hampshire And Isle Of Wight Wildlife Trust
Environmental & Regulatory,Regulatory Services,Housing and Environmental Health ,Supplies & Services,Grants and subscriptions,Capital Grants,09/04/2015,151704,5000,Therm-Eco (E.W.I) Ltd
Central Services to the Public,Management & Support Services,Finance,Supplies & Services,"Printing, Stationery & General Office Expenses",Postage Costs,23/04/2015,152986,5000,Neopost Ltd
Central Services to the Public,Emergency Planning,Corporate & Democratic,Supplies & Services,Grants & Subscriptions,Grants,16/04/2015,152497,5000,Personal data - Data Protection Act 1998
Central Services to the Public,Management & Support Services,Environmental,Transport Related Expenditure,Direct Transport Costs,Diesel,30/04/2015,153217,4173.75,Wessex Petroleum Limited
Environmental & Regulatory,Community Development,Community and Leisure ,Employees,Indirect Employee Expenses,Temporary Staff,16/04/2015,152100,5109,Winchester City Council
Central Services to the Public,Management & Support Services,Environmental,Transport Related Expenditure,Contract Hire and Operating Leases,Officer lease cars,23/04/2015,152959,5120.09,Alphabet (Gb) Ltd
Central Services to the Public,Local Land Charges,Legal & Democratic,Supplies & Services,Miscellaneous Expenses,Land Charges Fees,16/04/2015,152166,5128.75,Hampshire County Council
Central Services to the Public,Management & Support Services,Environmental,Supplies & Services,"Equipment, Furniture & Materials",Maintenance Equip + Materials,22/04/2015,152460,4461.13,Supreme Grinding Machines Ltd
Environmental & Regulatory,Regulatory Services,Estates and Economic Development ,Premises related Expenditure,Water Services,Water And Sewerage Charges,23/04/2015,152973,5399.67,Southern Water
Central Services to the Public,Management & Support Services,Chief Executive's,Transport Related Expenditure,Contract Hire and Operating Leases,Officer lease cars,16/04/2015,151889,5494.08,Tch Leasing
Central Services to the Public,Management & Support Services,Environmental,Transport Related Expenditure,Direct Transport Costs,Diesel,16/04/2015,151893,4624,Wessex Petroleum Limited
Central Services to the Public,Management & Support Services,Environmental,Transport Related Expenditure,Direct Transport Costs,Diesel,23/04/2015,152739,4630.93,Wessex Petroleum Limited
External Trading Accounts,Industrial Estates,Estates and Economic Development ,Supplies & Services,Services,Project Consultancy - Policy,16/04/2015,152164,4681.28,Local Partnerships
Central Services to the Public,Management & Support Services,Estates and Economic Development ,Third Party Payments,Other Establishments,Private Contractors,23/04/2015,152723,4720,Faithful And Gould
Central Services to the Public,Management & Support Services,IT,Employees,Indirect Employee Expenses,Recruitment Consultants,23/04/2015,104745,4876.37,Sanderson Recruitment Plc
Central Services to the Public,Management & Support Services,Chief Executive's,Transport Related Expenditure,Contract Hire and Operating Leases,Officer lease cars,23/04/2015,152443,5858.53,Inchcape Fleet Solutions Ltd
Cultural & Related,Open Spaces,Community and Leisure ,Premises related Expenditure,Grounds Maintenance Costs,Non Contract Tree Works,30/04/2015,151880,2579.44,Gristwood & Toms Ltd
Cultural & Related,Open Spaces,Community and Leisure ,Premises related Expenditure,Grounds Maintenance Costs,Non Contract Tree Works,30/04/2015,151880,1871.2,Gristwood & Toms Ltd
External Trading Accounts,Industrial Estates,Estates and Economic Development ,Premises related Expenditure,Repairs Alterations & Maintenance of Buildings,Building Maint - Non Estates,30/04/2015,151880,482.19,Gristwood & Toms Ltd
"Highways, Roads & Transport",Parking Services,Plan Pol & Transport,Supplies & Services,Services,Professional Fees,16/04/2015,152102,4965.13,Keyline Chartered Security Ltd
Cultural & Related,Culture & Heritage,Community and Leisure ,Supplies & Services,Services,Project Consultancy - Policy,30/04/2015,153518,6000,"Laurence Dube-Rushby, Installation Art"
Environmental & Regulatory,Regulatory Services,Housing and Environmental Health ,Supplies & Services,Grants and subscriptions,Capital Grants,21/04/2015,151689,6260.64,Pm Design
Environmental & Regulatory,Regulatory Services,Housing and Environmental Health ,Supplies & Services,Grants and subscriptions,Capital Grants,22/04/2015,152879,6260.64,Sahar Building Services Ltd
Cultural & Related,Open Spaces,Environmental,Supplies & Services,"Equipment, Furniture & Materials",Purchase Equip + Materials,16/04/2015,151894,3950,Kgm Ltd
Environmental & Regulatory,Street Cleansing (not chargeable to Highways),Environmental,Supplies & Services,"Equipment, Furniture & Materials",Purchase Equip + Materials,16/04/2015,151894,1357.32,Kgm Ltd
Central Services,Corporate & Democratic Core,Corporate & Democratic,Supplies & Services,Communications & Computing,Software Maintenance,23/04/2015,152850,5626.5,Astech Consultants Limited
Environmental & Regulatory,Waste management,Environmental,Supplies & Services,Miscellaneous Expenses,Recycling Bank Emptying,16/04/2015,152309,5675,Fcc Recycling (Uk) Ltd
Central Services to the Public,Management & Support Services,Chief Executive's,Supplies & Services,Communications & Computing,Computer Software,09/04/2015,151686,5890,Abavus Limited
Central Services to the Public,Management & Support Services,Plan Pol & Transport,Premises related Expenditure,Repairs Alterations & Maintenance of Buildings,General Repairs,09/04/2015,151658,6050,Gristwood & Toms Ltd
Environmental & Regulatory,Street Cleansing (not chargeable to Highways),Environmental,Supplies & Services,"Equipment, Furniture & Materials",Purchase Equip + Materials,09/04/2015,151669,6263.65,Glasdon Uk Ltd
Central Services to the Public,Management & Support Services,IT,Supplies & Services,Communications & Computing,Communication Links,09/04/2015,149663,6810,Virgin Media Payments Ltd
Environmental & Regulatory,Regulatory Services,Housing and Environmental Health ,Supplies & Services,Grants and subscriptions,Capital Grants,29/04/2015,153355,8330.4,Spring Heating & Plumbing Ltd
Cultural & Related,Culture & Heritage,Community and Leisure ,Premises related Expenditure,Energy Costs,Electricity,30/04/2015,153193,146.52,Hampshire County Council
"Highways, Roads & Transport",Parking Services,Plan Pol & Transport,Premises related Expenditure,Energy Costs,Electricity,30/04/2015,153193,6801.92,Hampshire County Council
Central Services to the Public,Management & Support Services,Finance,Employees,Direct Employee Expenses,Shared service staffing costs,23/04/2015,152740,7075.4,Gosport Borough Council
"Highways, Roads & Transport",Highways and roads - maintenance,Plan Pol & Transport,Supplies & Services,"Equipment, Furniture & Materials",Purchase Equip + Materials,23/04/2015,151659,7226,Signway Supplies (Datchet Ltd)
Environmental & Regulatory,Regulatory Services,Housing and Environmental Health ,Supplies & Services,Grants and subscriptions,Capital Grants,30/04/2015,153484,8951,Prism Medical Uk
Environmental & Regulatory,Regulatory Services,Housing and Environmental Health ,Supplies & Services,Grants and subscriptions,Capital Grants,16/04/2015,152496,10410,J D Codd Ltd
Planning & Development,Planning Policy,Plan Pol & Transport,Supplies & Services,Services,Project Consultancy - Policy,16/04/2015,152131,8812.5,Rpt Consulting Ltd
Central Services to the Public,Management & Support Services,Environmental,Transport Related Expenditure,Direct Transport Costs,Vehicles and Plant,16/04/2015,152348,9121.35,Citroen London West
Central Services to the Public,Management & Support Services,Environmental,Transport Related Expenditure,Direct Transport Costs,Vehicles and Plant,16/04/2015,152350,9121.35,Citroen London West
Environmental & Regulatory,Waste management,Environmental,Transport Related Expenditure,Direct Transport Costs,Licences,16/04/2015,152348,280,Citroen London West
Environmental & Regulatory,Waste management,Environmental,Transport Related Expenditure,Direct Transport Costs,Licences,16/04/2015,152350,280,Citroen London West
Central Services to the Public,Management & Support Services,Environmental,Transport Related Expenditure,Direct Transport Costs,Vehicles and Plant,16/04/2015,152349,9214.15,Citroen London West
Environmental & Regulatory,Street Cleansing (not chargeable to Highways),Environmental,Transport Related Expenditure,Direct Transport Costs,Licences,16/04/2015,152349,280,Citroen London West
Environmental & Regulatory,Waste management,Environmental,Supplies & Services,"Equipment, Furniture & Materials",Purchase Equip + Materials,30/04/2015,153204,9660,Craemer Uk Ltd
Central Services,Corporate & Democratic Core,Corporate & Democratic,Supplies & Services,Grants & Subscriptions,Subscriptions,23/04/2015,152344,10450,Local Government Association
Planning & Development,Community Development,Community and Leisure ,Supplies & Services,Grants & Subscriptions,Grants,23/04/2015,152985,12924,Youth In Romsey
Central Services to the Public,Elections,Legal & Democratic,Supplies & Services,Communications & Computing,Software Maintenance,09/04/2015,151883,11672.64,Xpress Software Solutions Ltd
Planning & Development,Planning Policy,Plan Pol & Transport,Supplies & Services,Grants & Subscriptions,Grants,23/04/2015,152991,15000,Test Valley Community Services-Shop Mobility
Central Services to the Public,Management & Support Services,IT,Supplies & Services,Communications & Computing,Communication Links,09/04/2015,149662,13000,Virgin Media Payments Ltd
Central Services to the Public,Management & Support Services,Estates and Economic Development ,Third Party Payments,Other Establishments,Private Contractors,30/04/2015,153474,15501.94,Westgate Construction (Hertford) Ltd
Central Services to the Public,Management & Support Services,Estates and Economic Development ,Third Party Payments,Other Establishments,Private Contractors,30/04/2015,153379,17408.92,Kier Facilities Services Ltd
Environmental & Regulatory,Street Cleansing (not chargeable to Highways),Environmental,Third Party Payments,Other Establishments,Private Contractors,23/04/2015,152727,18895,Forest Traffic Services Ltd
Cultural & Related,Open Spaces,Community and Leisure ,Premises related Expenditure,Grounds Maintenance Costs,Gm - Additional Works,30/04/2015,152775,19350,Aquamaintain Ltd
Central Services to the Public,Local Tax Collection,Revenues,Supplies & Services,"Printing, Stationery & General Office Expenses",Postage Costs,09/04/2015,151630,19138.09,Royal Mail
Central Services to the Public,Local Tax Collection,Revenues,Supplies & Services,"Printing, Stationery & General Office Expenses",Postage Costs,09/04/2015,151630,13.77,Royal Mail
Central Services to the Public,Local Tax Collection,Revenues,Supplies & Services,"Printing, Stationery & General Office Expenses",Postage Costs,09/04/2015,151630,179.52,Royal Mail
Housing Services,Housing Benefits ,Revenues,Supplies & Services,"Printing, Stationery & General Office Expenses",Postage Costs,09/04/2015,151630,46.43,Royal Mail
Central Services to the Public,Local Tax Collection,Revenues,Supplies & Services,"Printing, Stationery & General Office Expenses",Postage Costs,09/04/2015,151630,46.42,Royal Mail
Central Services to the Public,Management & Support Services,Plan Pol & Transport,Supplies & Services,"Equipment, Furniture & Materials",Purchase Equip + Materials,30/04/2015,152880,20558.3,Amey Lg Ltd
Planning & Development,Development Control,Planning & Building,Supplies & Services,Services,Legal Fees,15/04/2015,152351,30750,Adrian Trevelyan Thomas
Planning & Development,Planning Policy,Plan Pol & Transport,Supplies & Services,Services,Project Consultancy - Policy,09/04/2015,151324,31144.96,Hampshire County Council
Cultural & Related,Recreation & Sport,Community and Leisure ,Third Party Payments,Other Establishments,ALC Management Contract-TVL,30/04/2015,151858,34000,Valley Leisure Ltd
Environmental & Regulatory,Regulatory Services,Housing and Environmental Health ,Supplies & Services,Miscellaneous Expenses,Data Access Requests,23/04/2015,152905,44,Hampshire County Council
Cultural & Related,Open Spaces,Environmental,Supplies & Services,Miscellaneous Expenses,Data Access Requests,23/04/2015,152905,44,Hampshire County Council
Cultural & Related,Open Spaces,Environmental,Supplies & Services,Miscellaneous Expenses,Data Access Requests,23/04/2015,152905,44,Hampshire County Council
"Highways, Roads & Transport",Parking Services,Plan Pol & Transport,Supplies & Services,Miscellaneous Expenses,Data Access Requests,23/04/2015,152905,44,Hampshire County Council
Environmental & Regulatory,Waste management,Environmental,Supplies & Services,Miscellaneous Expenses,Data Access Requests,23/04/2015,152905,44,Hampshire County Council
Central Services to the Public,Management & Support Services,Chief Executive's,Third Party Payments,Other Local Authorities,Shared Service Contract Costs,23/04/2015,152905,"16,960.06",Hampshire County Council
Central Services to the Public,Management & Support Services,Chief Executive's,Third Party Payments,Other Local Authorities,Shared Service Contract Costs,23/04/2015,152905,"8,355.47",Hampshire County Council
Central Services to the Public,Management & Support Services,IT,Employees,Indirect Employee Expenses,Advertising Of Vacancies,23/04/2015,152905,625,Hampshire County Council
Central Services to the Public,Management & Support Services,Estates and Economic Development ,Employees,Indirect Employee Expenses,Advertising Of Vacancies,23/04/2015,152905,360,Hampshire County Council
Planning & Development,Development Control,Planning & Building,Employees,Indirect Employee Expenses,Advertising Of Vacancies,23/04/2015,152905,"1,360.00",Hampshire County Council
Environmental & Regulatory,Regulatory Services,Estates and Economic Development ,Employees,Indirect Employee Expenses,Advertising Of Vacancies,23/04/2015,152905,"1,763.08",Hampshire County Council
Cultural & Related,Open Spaces,Environmental,Employees,Indirect Employee Expenses,Advertising Of Vacancies,23/04/2015,152905,"1,174.00",Hampshire County Council
Central Services to the Public,Management & Support Services,Environmental,Employees,Indirect Employee Expenses,Advertising Of Vacancies,23/04/2015,152905,748.26,Hampshire County Council
Central Services to the Public,Management & Support Services,Legal & Democratic,Employees,Indirect Employee Expenses,Advertising Of Vacancies,23/04/2015,152905,295.84,Hampshire County Council
Central Services to the Public,Elections,Legal & Democratic,Employees,Indirect Employee Expenses,Advertising Of Vacancies,23/04/2015,152905,147.92,Hampshire County Council
Central Services to the Public,Elections,Legal & Democratic,Employees,Indirect Employee Expenses,Advertising Of Vacancies,23/04/2015,152905,295.84,Hampshire County Council
Environmental & Regulatory,Regulatory Services,Legal & Democratic,Employees,Indirect Employee Expenses,Advertising Of Vacancies,23/04/2015,152905,110.94,Hampshire County Council
Central Services to the Public,Management & Support Services,Chief Executive's,Employees,Indirect Employee Expenses,Advertising Of Vacancies,23/04/2015,152905,924.5,Hampshire County Council
Central Services to the Public,Management & Support Services,Chief Executive's,Employees,Indirect Employee Expenses,Advertising Of Vacancies,23/04/2015,152905,"1,146.37",Hampshire County Council
Central Services to the Public,Management & Support Services,Chief Executive's,Employees,Indirect Employee Expenses,Advertising Of Vacancies,23/04/2015,152905,221.88,Hampshire County Council
Central Services to the Public,Management & Support Services,Estates and Economic Development ,Employees,Indirect Employee Expenses,Advertising Of Vacancies,23/04/2015,152905,739.6,Hampshire County Council
Central Services to the Public,Management & Support Services,Estates and Economic Development ,Employees,Indirect Employee Expenses,Advertising Of Vacancies,23/04/2015,152905,73.96,Hampshire County Council
Central Services to the Public,Management & Support Services,Estates and Economic Development ,Employees,Indirect Employee Expenses,Advertising Of Vacancies,23/04/2015,152905,"1,183.35",Hampshire County Council
Environmental & Regulatory,Regulatory Services,Estates and Economic Development ,Employees,Indirect Employee Expenses,Advertising Of Vacancies,23/04/2015,152905,369.8,Hampshire County Council
Central Services to the Public,Management & Support Services,Finance,Employees,Indirect Employee Expenses,Advertising Of Vacancies,23/04/2015,152905,665.64,Hampshire County Council
Environmental & Regulatory,Regulatory Services,Housing and Environmental Health ,Employees,Indirect Employee Expenses,Advertising Of Vacancies,23/04/2015,152905,295.84,Hampshire County Council
Environmental & Regulatory,Regulatory Services,Housing and Environmental Health ,Employees,Indirect Employee Expenses,Advertising Of Vacancies,23/04/2015,152905,110.94,Hampshire County Council
Housing Services,Homelessness,Housing and Environmental Health ,Employees,Indirect Employee Expenses,Advertising Of Vacancies,23/04/2015,152905,147.92,Hampshire County Council
Central Services to the Public,Management & Support Services,IT,Employees,Indirect Employee Expenses,Advertising Of Vacancies,23/04/2015,152905,221.88,Hampshire County Council
Central Services to the Public,Management & Support Services,IT,Employees,Indirect Employee Expenses,Advertising Of Vacancies,23/04/2015,152905,221.88,Hampshire County Council
Cultural & Related,Open Spaces,Community and Leisure ,Employees,Indirect Employee Expenses,Advertising Of Vacancies,23/04/2015,152905,147.92,Hampshire County Council
Cultural & Related,Culture & Heritage,Community and Leisure ,Employees,Indirect Employee Expenses,Advertising Of Vacancies,23/04/2015,152905,221.88,Hampshire County Council
Cultural & Related,Culture & Heritage,Community and Leisure ,Employees,Indirect Employee Expenses,Advertising Of Vacancies,23/04/2015,152905,318.03,Hampshire County Council
Cultural & Related,Culture & Heritage,Community and Leisure ,Employees,Indirect Employee Expenses,Advertising Of Vacancies,23/04/2015,152905,147.92,Hampshire County Council
Environmental & Regulatory,Community Development,Community and Leisure ,Employees,Indirect Employee Expenses,Advertising Of Vacancies,23/04/2015,152905,192.29,Hampshire County Council
Planning & Development,Development Control,Planning & Building,Employees,Indirect Employee Expenses,Advertising Of Vacancies,23/04/2015,152905,"3,180.24",Hampshire County Council
Central Services to the Public,Management & Support Services,Revenues,Employees,Indirect Employee Expenses,Advertising Of Vacancies,23/04/2015,152905,"1,701.07",Hampshire County Council
Planning & Development,Planning Policy,Plan Pol & Transport,Employees,Indirect Employee Expenses,Advertising Of Vacancies,23/04/2015,152905,443.76,Hampshire County Council
"Highways, Roads & Transport",Highways and roads - maintenance,Plan Pol & Transport,Employees,Indirect Employee Expenses,Advertising Of Vacancies,23/04/2015,152905,295.84,Hampshire County Council
"Highways, Roads & Transport",Parking Services,Plan Pol & Transport,Employees,Indirect Employee Expenses,Advertising Of Vacancies,23/04/2015,152905,406.78,Hampshire County Council
Central Services to the Public,Management & Support Services,Environmental,Employees,Indirect Employee Expenses,Advertising Of Vacancies,23/04/2015,152905,110.94,Hampshire County Council
Cultural & Related,Open Spaces,Environmental,Employees,Indirect Employee Expenses,Advertising Of Vacancies,23/04/2015,152905,"1,434.82",Hampshire County Council
Environmental & Regulatory,Street Cleansing (not chargeable to Highways),Environmental,Employees,Indirect Employee Expenses,Advertising Of Vacancies,23/04/2015,152905,"1,109.39",Hampshire County Council
Environmental & Regulatory,Waste management,Environmental,Employees,Indirect Employee Expenses,Advertising Of Vacancies,23/04/2015,152905,"2,026.49",Hampshire County Council
Central Services to the Public,Management & Support Services,Environmental,Employees,Indirect Employee Expenses,Advertising Of Vacancies,23/04/2015,152905,406.78,Hampshire County Council
Central Services to the Public,Management & Support Services,Estates and Economic Development ,Third Party Payments,Other Establishments,Private Contractors,30/04/2015,153378,57067.29,Kier Facilities Services Ltd
Planning & Development,Community Development,Community and Leisure ,Supplies & Services,Grants & Subscriptions,Grants,30/04/2015,153480,106610,Test Valley Cab
Central Services to the Public,Management & Support Services,Legal & Democratic,Supplies & Services,Services,Training Courses,29/04/2015,152439,60,12 College Place
